{"text_format":"1","workbook":"xlsx","n_sheets":2,"sheets":["Cover","Analyse"],"not_rendered":{"charts":1,"images":0,"macros":0,"external_links":1,"defined_names":3,"comments":0,"pivot_tables":0},"unopened":[],"bounds":{"document_bytes":16777216,"sheet_cells":100000,"rows_first":2000,"rows_last":500,"rows_between":2000,"halvings":0,"cell_chars":16384,"cell_head_chars":4096},"cells_cut":0,"cells_raw":0,"read":"whole","date_system":"1900"}

{"sheet":"Cover","index":0,"n_rows":23,"n_cols":3,"rows_kept":23,"cut":false,"hidden":false,"merged":[]}
[]
[]
[null,"Excel + VBA "]
[null,"für Controller"]
[]
[]
[null,"Kapitel",9]
[null,"Thema","Strategisches Projekt-Controlling"]
[]
[null,"Inhalt","Einfluss-Analyse"]
[]
[null,null," "]
[]
[]
[]
[]
[]
[null,"Version","1.0"]
[null,"Autor","Harald Nahrstedt"]
[null,"Datum","2025-04-27"]
[]
[]
[null,"Springer Verlag"]

{"sheet":"Analyse","index":1,"n_rows":14,"n_cols":14,"rows_kept":14,"cut":false,"hidden":false,"merged":[[0,0,1,1]]}
["\n\nEinfluss-Matrix\n0 = kein Einfluss\n1  = schwacher, verzögerter Einfluss\n2 = mittlerer Einfluss\n3 = starker, unmittelbarer Einfluss\n \n \n\n",null,1,2,3,4,5,6,7,8,9,10,11]
[null,null,"Projekt A","Projekt B","Projekt C","Projekt D","Projekt E","Projekt F","Projekt G","Projekt H","Projekt I","Projekt J","Projekt K","Passivsumme"]
[1,"Projekt A",null,2,2,3,0,1,2,2,2,0,0,{"$f":"SUM(C3:M3)","v":14}]
[2,"Projekt B",1,null,0,0,0,0,0,2,0,0,0,{"$f":"SUM(C4:M4)","v":3}]
[3,"Projekt C",0,1,null,2,0,1,3,2,2,1,0,12]
[4,"Projekt D",1,2,0,null,0,0,1,2,2,0,0,8]
[5,"Projekt E",0,1,2,3,null,1,1,3,2,1,1,15]
[6,"Projekt F",0,1,2,1,1,null,1,3,0,0,0,9]
[7,"Projekt G",0,2,1,1,1,0,null,0,1,1,1,8]
[8,"Projekt H",1,1,3,1,0,2,0,null,2,0,0,10]
[9,"Projekt I",2,0,1,3,1,2,2,1,null,1,1,14]
[10,"Projekt J",1,0,0,2,1,2,1,0,2,null,2,11]
[11,"Projekt K",2,1,0,1,0,0,1,0,1,0,null,6]
[null,"Aktivsumme",{"$f":"SUM(C3:C13)","v":8},{"$f":"SUM(D3:D13)","v":11},11,17,4,9,12,15,14,4,5]